bitfinex/quotes_SOLUSD_20250721
["timestamp","ask_amount","ask_price","bid_price","bid_amount"]
[1753098489085,8.67853354,191.57,191.56,6.7e-07]
[1753098489873,5.95990791,191.57,191.56,6.7e-07]
[1753098490472,0.06,191.57,191.56,6.6e-07]
[1753098490790,0.06,191.57,191.55,31.21601865]
[1753098491569,0.06,191.57,191.56,6.6e-07]
[1753098491865,43.94990791,191.57,191.56,6.6e-07]
[1753098494279,43.94990791,191.57,191.52,5.22129219]
[1753098494481,0.67,191.56,191.53,5.216]
[1753098494680,0.67,191.56,191.5,148.0]
[1753098494882,5.89043864,191.56,191.49,5.22215644]
[1753098495094,5.22043864,191.56,191.49,5.22215644]
[1753098495288,0.67,191.55,191.49,5.22215644]
[1753098495491,37.32,191.54,191.49,5.22215644]
[1753098495695,37.32,191.53,191.5,0.28]
[1753098495882,37.32,191.52,191.51,0.28]
[1753098496196,5.89990791,191.56,191.51,11.39590791]
[1753098496402,37.32,191.55,191.51,11.39590791]
[1753098496693,37.32,191.54,191.53,5.216]
[1753098498401,0.06,191.57,191.53,159.39590791]
[1753098498605,37.32,191.56,191.54,5.22084159]
[1753098499472,37.99,191.56,191.54,5.22084159]
[1753098499672,37.32,191.56,191.54,5.22084159]
[1753098502500,6.56990791,191.55,191.53,148.0]
[1753098502692,43.86990791,191.54,191.53,148.0]
[1753098502999,43.86990791,191.54,191.52,5.22115877]
[1753098503176,5.89990791,191.53,191.52,5.22115877]
[1753098503687,0.67,191.53,191.5,148.0]
[1753098503880,5.89990791,191.51,191.5,158.43788369]
[1753098504078,43.86990791,191.51,191.5,5.216]
[1753098504498,43.86990791,191.51,191.47,153.22268538]
[1753098504698,5.89990791,191.49,191.47,153.22268538]
[1753098504904,37.3,191.48,191.47,153.22268538]
[1753098505204,43.19990791,191.48,191.47,153.22268538]
[1753098505811,43.86990791,191.48,191.47,153.2227503]
[1753098506916,43.19990791,191.48,191.47,153.2227503]
[1753098507079,43.86990791,191.48,191.46,10.4389845]
[1753098507280,43.86990791,191.48,191.45,5.25322435]
[1753098507281,6.56990791,191.47,191.45,5.25322435]
[1753098507490,43.19990791,191.46,191.45,5.25322435]
[1753098508590,43.19990791,191.46,191.45,0.03]
[1753098508809,43.86990791,191.46,191.45,0.03]
[1753098510399,43.19990791,191.46,191.45,0.03]
[1753098510598,37.3,191.46,191.45,0.03]
[1753098510790,43.19990791,191.46,191.45,0.03]
[1753098510982,43.86990791,191.46,191.45,0.03]
[1753098513412,49.09293099,191.46,191.45,0.03]
[1753098513597,43.86990791,191.46,191.45,0.03]
[1753098514084,0.68,191.49,191.45,0.03]
[1753098514407,43.19990791,191.48,191.45,8.76622309]
[1753098514618,43.87990791,191.48,191.45,13.98937578]
[1753098514997,5.89990791,191.46,191.45,0.03]
[1753098515205,43.19990791,191.46,191.41,0.03]
[1753098515505,5.89990791,191.42,191.41,0.03]
[1753098515801,43.19990791,191.42,191.41,0.03]
[1753098516103,43.87990791,191.42,191.41,0.03]
[1753098517986,0.68,191.45,191.41,0.03]
[1753098518318,5.89990791,191.42,191.41,0.03]
[1753098518606,0.68,191.47,191.41,22.71459188]
[1753098518790,37.3,191.46,191.45,16.78468397]
[1753098518985,37.3,191.46,191.45,22.96459188]
[1753098519307,37.3,191.46,191.45,29.47375524]
[1753098519703,5.89990791,191.51,191.45,29.47375524]
[1753098519903,37.3,191.5,191.47,5.89990791]
[1753098520292,37.3,191.5,191.47,16.78468397]
[1753098521205,37.3,191.5,191.48,5.22247754]
[1753098521602,0.68,191.49,191.48,5.22247754]
[1753098521805,6.57990791,191.49,191.48,22.00716151]
[1753098522013,0.68,191.49,191.48,22.00716151]
[1753098522195,37.98,191.49,191.48,22.00716151]
[1753098522608,0.68,191.49,191.48,22.00716151]
[1753098523132,37.96,191.49,191.48,22.00716151]
[1753098523792,0.68,191.54,191.49,16.78468397]
[1753098524008,43.85990791,191.53,191.49,16.78468397]
[1753098524213,0.68,191.52,191.49,16.78468397]
[1753098524411,0.06,191.56,191.51,42.78468397]
[1753098524606,5.95990791,191.56,191.52,16.78468397]
[1753098524810,37.28,191.55,191.52,16.78468397]
[1753098524993,6.57990791,191.54,191.52,16.78468397]
[1753098525193,5.89990791,191.54,191.52,16.78468397]
[1753098525410,0.68,191.53,191.52,16.78468397]
[1753098525613,37.96,191.55,191.52,16.78468397]
[1753098525910,0.06,191.56,191.54,16.78468397]
[1753098526115,37.28,191.55,191.54,16.78468397]
[1753098526420,0.06,191.56,191.54,16.78468397]
[1753098526914,0.06,191.56,191.54,17.06468397]
[1753098527116,0.06,191.56,191.55,0.28]
[1753098527497,0.06,191.56,191.55,48.96459188]
[1753098527797,1e-08,191.56,191.55,54.18516092]
[1753098528009,1e-08,191.56,191.55,31.35836092]
[1753098528324,26.44639432,191.59,191.57,7.5e-07]
[1753098528518,26.40663829,191.59,191.58,5.89990791]
[1753098528700,26.40663829,191.59,191.58,7.5e-07]
[1753098529409,26.40663829,191.59,191.57,6.6e-07]
[1753098529605,26.40663829,191.59,191.58,9e-08]
[1753098530112,26.40663829,191.59,191.55,90.01519164]
[1753098530307,26.40663829,191.59,191.56,7.5e-07]
[1753098530514,26.40663829,191.59,191.55,58.63509955]
[1753098531200,32.63614279,191.58,191.55,5.22056904]
[1753098531706,0.68,191.57,191.55,5.22056904]
[1753098532021,6.57990791,191.57,191.53,5.22111418]
[1753098533019,0.68,191.56,191.53,5.22111418]
[1753098533417,6.57990791,191.56,191.53,5.22111418]
[1753098534421,5.89990791,191.57,191.53,5.22111418]
[1753098535204,8.63119562,191.57,191.53,5.22111418]
[1753098535414,8.63119562,191.57,191.53,18.27389964]
[1753098535725,8.63119562,191.57,191.53,18.2739003]
[1753098535915,9.31119562,191.57,191.53,18.2739003]
[1753098538825,8.63119562,191.57,191.53,18.2739003]
[1753098539314,26.73623488,191.58,191.53,26.90509592]
[1753098539516,26.73623488,191.58,191.55,8.63119562]
[1753098539725,26.73623488,191.58,191.56,1.09e-06]
[1753098540129,26.73623488,191.58,191.57,5.216]
[1753098540332,26.73623488,191.58,191.56,6.6e-07]
[1753098540533,26.73623488,191.58,191.55,39.92119562]
[1753098541023,26.73623488,191.58,191.55,31.29]
[1753098541620,26.73623488,191.58,191.56,6.6e-07]
[1753098541923,26.70666144,191.59,191.56,1.09e-06]
[1753098542232,26.70666144,191.59,191.54,63.24000394]
[1753098542415,26.70666144,191.59,191.55,5.216]
[1753098542727,26.70666144,191.59,191.54,63.76208809]
[1753098543036,0.06,191.6,191.4,8.63119562]
[1753098543037,26.80527915,191.57,191.55,6.9e-07]
[1753098543223,35.37834494,191.56,191.55,6.9e-07]
[1753098543533,36.07834494,191.56,191.55,6.9e-07]
[1753098544236,26.74714932,191.56,191.55,6.9e-07]
[1753098545121,26.80527915,191.57,191.55,6.9e-07]
[1753098545318,63.97623488,191.58,191.54,5.216]
[1753098545521,73.3074305,191.58,191.54,5.216]
[1753098545912,8.63119562,191.57,191.55,5.22056904]
[1753098546136,9.33119562,191.57,191.55,5.22056904]
[1753098546331,26.74714932,191.56,191.55,6.9e-07]
[1753098547536,8.63119562,191.56,191.54,5.25084159]
[1753098547913,9.33119562,191.57,191.54,5.25084159]
[1753098549032,72.6074305,191.58,191.54,18.30294558]
[1753098549230,26.73623488,191.58,191.54,18.30294558]
[1753098549728,26.73623488,191.58,191.55,5.216]
[1753098550436,27.43623488,191.58,191.55,6.6e-07]
[1753098551613,27.43623488,191.58,191.53,8.63119562]
[1753098551837,2.6284197,191.54,191.5,8.63119562]
[1753098552027,11.25961532,191.54,191.49,34.74221969]
[1753098552339,2.6284197,191.54,191.52,26.0]
[1753098552641,11.25961532,191.54,191.52,26.0]
[1753098553331,46.55119562,191.53,191.51,5.22165944]
[1753098553532,8.63119562,191.52,191.51,5.22165944]
[1753098553930,37.22,191.53,191.51,5.22165944]
[1753098554128,8.63119562,191.52,191.51,5.22165944]
[1753098554944,37.22,191.53,191.51,5.22165944]
[1753098555238,8.63119562,191.52,191.5,18.27622453]
[1753098555825,45.85119562,191.53,191.5,18.27622453]
[1753098556430,45.85119562,191.53,191.5,5.22193211]
[1753098556431,8.63119562,191.52,191.5,5.22193211]
[1753098556622,2.6284197,191.54,191.5,5.22193211]
[1753098556824,37.22,191.53,191.5,5.22193211]
[1753098557042,37.22,191.53,191.5,18.27676239]
[1753098557433,9.33119562,191.52,191.5,18.27676239]
[1753098558242,8.63119562,191.51,191.5,5.22193211]
[1753098558451,9.33119562,191.51,191.5,5.22193211]
[1753098558628,9.33119562,191.51,191.49,31.22218199]
[1753098558826,46.55119562,191.5,191.49,31.22218199]
[1753098559034,46.55119562,191.5,191.47,5.22247958]
[1753098559345,5.89067916,191.48,191.47,5.22247958]
[1753098559744,6.59067916,191.48,191.47,5.22247958]
[1753098562651,6.59067916,191.48,191.45,0.03]
[1753098562949,5.89067916,191.46,191.45,5.25322728]
[1753098563353,6.59067916,191.46,191.45,5.25322728]
[1753098563537,6.59067916,191.46,191.45,0.03]
[1753098563743,0.7,191.46,191.45,0.03]
[1753098563948,6.59067916,191.46,191.45,0.03]
[1753098566151,43.09067916,191.46,191.45,0.03]
[1753098566471,5.89067916,191.46,191.45,0.03]
[1753098566761,37.2,191.46,191.45,26.03]
[1753098566970,37.2,191.47,191.45,26.03]
[1753098567177,6.59067916,191.51,191.46,31.89067916]
[1753098567344,37.2,191.49,191.46,31.89067916]
[1753098567546,37.2,191.49,191.46,26.0]
[1753098567766,37.2,191.49,191.46,31.89067916]
[1753098567968,37.2,191.49,191.47,11.11342946]
[1753098568465,0.7,191.53,191.47,11.11342946]
[1753098568788,37.2,191.52,191.5,26.0]
[1753098569657,37.9,191.52,191.5,26.0]
[1753098569968,0.7,191.51,191.5,31.22193211]
[1753098570351,9.33345627,191.51,191.47,26.03]
[1753098570551,9.33345627,191.5,191.48,5.22247754]
[1753098570753,37.2,191.49,191.48,5.22247754]
[1753098571860,37.85,191.49,191.48,5.22247754]
[1753098572560,46.48345627,191.49,191.48,5.22247754]
[1753098573059,46.48345627,191.49,191.47,5.25272783]
[1753098573249,8.63345627,191.48,191.47,5.25272783]
[1753098573450,9.28345627,191.48,191.47,5.25272783]
[1753098574371,0.65,191.48,191.47,5.25272783]
[1753098574550,45.83345627,191.49,191.47,5.25272783]
[1753098574750,46.48345627,191.49,191.47,5.25272783]
[1753098575275,0.65,191.49,191.47,5.25272783]
[1753098575581,37.2,191.51,191.5,26.0]
[1753098575875,37.2,191.52,191.5,31.216]
[1753098576056,0.06,191.54,191.5,34.63345627]
[1753098576254,0.06,191.54,191.52,26.0]
[1753098576464,37.2,191.55,191.53,13.85457045]
[1753098576666,64.00527915,191.57,191.54,1.11e-06]
[1753098576868,64.00527915,191.57,191.53,32.12335591]
[1753098577069,26.79623488,191.58,191.55,8.52095497]
[1753098577268,26.79623488,191.58,191.53,18.27389964]
[1753098577269,37.2,191.57,191.53,18.27389964]
[1753098577470,37.2,191.57,191.54,8.63345627]
[1753098577970,37.2,191.57,191.55,5.216]
[1753098578180,37.2,191.57,191.54,1.75e-06]
[1753098578181,64.00527915,191.57,191.54,1.75e-06]
[1753098578758,64.00527915,191.57,191.53,18.27389964]
[1753098578759,0.65,191.56,191.53,13.05278546]
[1753098578954,72.63873542,191.57,191.53,13.05278546]
[1753098579277,0.65,191.55,191.53,13.05278546]
[1753098579457,37.18,191.54,191.53,13.05278546]
[1753098579970,37.18,191.54,191.52,5.216]
[1753098580174,37.83,191.54,191.52,5.216]
[1753098580867,37.18,191.54,191.53,5.22111418]
[1753098581456,37.83,191.54,191.53,5.22111418]
[1753098582591,37.83,191.54,191.53,26.0]
[1753098584185,37.83,191.54,191.53,31.22111418]
[1753098584382,26.74714932,191.56,191.53,36.43711418]
[1753098584690,37.18,191.55,191.53,36.43711418]
[1753098584859,37.18,191.55,191.53,49.48989964]
[1753098585185,37.18,191.55,191.53,197.48989964]
[1753098585682,37.18,191.55,191.53,206.12335591]
[1753098585882,37.18,191.56,191.53,206.12335591]
[1753098586058,63.92714932,191.56,191.53,206.12335591]
[1753098586459,63.92714932,191.56,191.53,197.48989964]
[1753098586660,63.92714932,191.56,191.53,206.12335591]
[1753098586861,37.18,191.56,191.54,5.21600111]
[1753098587287,26.80527915,191.57,191.54,5.21600111]
[1753098587490,63.5074792,191.58,191.56,1.11e-06]
[1753098587878,63.5074792,191.58,191.55,8.63345627]
[1753098588566,0.65,191.57,191.56,6.6e-07]
[1753098588761,63.5074792,191.58,191.53,8.63347492]
[1753098588960,63.5074792,191.58,191.54,8.63345627]
[1753098589192,63.5074792,191.58,191.55,8.63345627]
[1753098589398,63.5074792,191.58,191.57,3.28e-06]
[1753098589591,63.5074792,191.58,191.54,18.27294558]
[1753098589764,63.5074792,191.58,191.54,6.0094688]
[1753098590266,63.5074792,191.58,191.53,8.63347492]
[1753098590464,64.1574792,191.58,191.53,8.63347492]
[1753098590659,64.1574792,191.58,191.54,18.27294625]
[1753098590864,64.1574792,191.58,191.54,13.05210466]
[1753098591278,63.5074792,191.58,191.54,13.05210466]
[1753098591476,0.65,191.57,191.56,3.28e-06]
[1753098591677,0.65,191.57,191.54,13.05210466]
[1753098591877,27.29312341,191.57,191.54,1.65e-06]
[1753098592074,27.29312341,191.57,191.54,0.03000165]
[1753098592666,26.64312341,191.57,191.54,0.03000165]
[1753098593287,63.5074792,191.58,191.53,5.22113283]
[1753098593473,63.5074792,191.58,191.56,3.28e-06]
[1753098593673,63.5074792,191.58,191.53,11.10433548]
[1753098594166,26.3474792,191.58,191.54,5.88320265]
[1753098594374,63.5074792,191.58,191.54,18.93530664]
[1753098594670,63.5074792,191.58,191.54,37.62597758]
[1753098594874,63.5074792,191.58,191.55,5.88320265]
[1753098595372,26.3474792,191.58,191.54,21.98264558]
[1753098595577,26.2874792,191.58,191.56,7.5e-07]
[1753098596988,26.2249698,191.6,191.57,7.5e-07]
[1753098597194,26.2249698,191.6,191.58,7.5e-07]
[1753098597487,26.2249698,191.6,191.55,56.25904087]
[1753098597488,26.2249698,191.6,191.55,19.93006397]
[1753098597676,26.2249698,191.6,191.55,8.1843569]
[1753098597870,26.2249698,191.6,191.57,7.5e-07]
[1753098598064,0.65,191.59,191.55,23.30237]
[1753098598279,26.16844992,191.58,191.55,15.64007]
[1753098598483,26.16844992,191.58,191.54,62.38227249]
[1753098598689,5.88320265,191.56,191.54,153.22084159]
[1753098598875,6.53320265,191.55,191.52,5.2213868]
[1753098599081,5.88320265,191.53,191.52,5.2213868]
[1753098599281,43.67320265,191.53,191.52,5.2213868]
[1753098599473,37.14,191.53,191.52,5.2213868]
[1753098599881,37.79,191.53,191.52,5.2213868]
[1753098600475,37.14,191.53,191.52,5.2213868]
[1753098600880,37.79,191.53,191.51,18.27577037]
[1753098601193,37.14,191.53,191.52,26.0]
[1753098601399,43.02320265,191.53,191.52,26.0]
[1753098601581,43.74320265,191.53,191.52,26.0]
[1753098601780,16.78468397,191.52,191.5,5.22191805]
[1753098601980,37.14,191.51,191.5,5.22191805]
[1753098602180,37.14,191.51,191.47,0.03]
[1753098602181,60.52788662,191.51,191.47,0.03]
[1753098602385,22.66788662,191.48,191.47,0.03]
[1753098602581,16.78468397,191.47,191.46,0.03]
[1753098602896,37.86,191.47,191.46,0.03]
[1753098603201,46.50037725,191.47,191.46,0.03]
[1753098613605,37.86,191.47,191.46,5.25302308]
[1753098613774,46.50037725,191.47,191.46,0.03]
[1753098613978,63.28506122,191.47,191.46,0.03]
[1753098617705,54.64468397,191.47,191.46,0.03]
[1753098617908,63.28506122,191.47,191.46,0.03]
[1753098618905,54.64468397,191.47,191.46,0.03]
[1753098619204,63.28506122,191.47,191.46,0.03]
[1753098620987,3.867,191.5,191.46,26.03]
[1753098621307,37.14,191.52,191.49,34.64037725]
[1753098621483,0.72,191.51,191.5,5.216]
[1753098621683,37.14,191.52,191.5,5.216]
[1753098621885,0.06,191.55,191.52,31.2213868]
[1753098622215,37.14,191.54,191.52,31.2213868]
[1753098622406,37.14,191.54,191.52,36.4373868]
[1753098622808,0.06,191.55,191.52,39.86176405]
[1753098623008,37.14,191.54,191.52,31.2213868]
[1753098624912,37.14,191.54,191.53,5.216]
[1753098626405,0.06,191.55,191.54,10.43684159]
[1753098626598,37.18,191.55,191.54,10.43684159]
[1753098627997,43.78563728,191.55,191.54,10.43684159]
[1753098629892,37.18,191.55,191.54,10.43684159]
[1753098630199,0.06,191.55,191.54,185.14684159]
[1753098630401,0.06,191.55,191.54,191.03247887]
[1753098631014,0.06,191.55,191.54,185.14684159]
[1753098631612,0.06,191.55,191.54,184.43684159]
[1753098633494,0.06,191.55,191.54,185.10684159]
[1753098634195,0.06,191.55,191.54,179.89084159]
[1753098634393,0.06,191.55,191.54,179.22084159]
[1753098635794,0.06,191.55,191.54,179.89084159]
[1753098636021,0.06,191.55,191.54,179.22084159]
[1753098638624,0.06,191.55,191.54,153.22084159]
[1753098638802,0.06,191.55,191.54,159.77647887]
[1753098639311,0.06,191.55,191.54,153.22084159]
[1753098641537,0.77,191.55,191.54,153.22084159]
[1753098641999,0.06,191.55,191.54,153.22084159]
[1753098645409,6.65563728,191.55,191.54,153.22084159]
[1753098645611,16.78468397,191.54,191.48,5.22247754]
[1753098645831,37.79,191.53,191.48,166.27867139]
[1753098646130,5.88563728,191.49,191.48,166.27867139]
[1753098646643,42.96563728,191.5,191.48,166.27867139]
[1753098646813,5.88563728,191.49,191.48,166.27867139]
[1753098647112,43.67563728,191.5,191.48,166.27867139]
[1753098647510,6.59563728,191.49,191.48,153.22247754]
[1753098647738,6.59563728,191.49,191.48,179.22247754]
[1753098647944,16.78468397,191.48,191.47,0.03]
[1753098648142,60.46032125,191.48,191.47,0.03]
[1753098650819,64.85042125,191.48,191.47,0.03]
[1753098651215,70.07289879,191.48,191.47,0.03]
[1753098652127,70.07289879,191.48,191.45,0.03]
[1753098652327,22.67032125,191.46,191.45,0.03]
[1753098652535,59.75032125,191.46,191.45,0.03]
[1753098652734,65.68334433,191.46,191.45,0.03]
[1753098652927,60.46032125,191.46,191.45,0.03]
[1753098658324,4.3901,191.48,191.45,0.03]
[1753098658532,6.59563728,191.46,191.45,0.03]
[1753098660138,5.88563728,191.46,191.45,0.03]
[1753098660640,5.88563728,191.5,191.47,26.0]
[1753098660951,37.08,191.49,191.47,26.67]
[1753098661138,37.08,191.49,191.48,26.0]
[1753098662150,37.08,191.49,191.48,31.22247754]
[1753098663025,37.8,191.49,191.48,31.22247754]
[1753098663537,43.68563728,191.49,191.48,31.22247754]
[1753098663848,16.78468397,191.48,191.45,0.03]
[1753098664056,22.67032125,191.46,191.45,0.03]
[1753098664261,22.67032125,191.46,191.45,26.03]
[1753098664544,23.39032125,191.46,191.45,0.03]
[1753098666154,28.61334433,191.46,191.45,0.03]
[1753098666456,22.67032125,191.45,191.42,0.03]
[1753098666629,22.67032125,191.43,191.42,0.03]
[1753098666835,16.78468397,191.42,191.41,0.03]
[1753098667135,60.45032125,191.42,191.41,0.03]
[1753098667635,65.30252125,191.42,191.41,0.03]
[1753098668157,65.30252125,191.42,191.39,1.19226208]
[1753098668158,16.78468397,191.4,191.39,1.19226208]
[1753098668325,70.84061892,191.4,191.39,1.19226208]
[1753098668526,71.56061892,191.4,191.39,1.19226208]
[1753098668860,66.33595853,191.4,191.39,1.19226208]
[1753098669355,5.88563728,191.4,191.39,6.41719546]
[1753098669532,59.73032125,191.4,191.39,6.41719546]
[1753098670335,0.72,191.45,191.39,6.41719546]
[1753098670654,5.88563728,191.43,191.39,20.16952891]
[1753098670824,5.88563728,191.44,191.4,0.69]
[1753098671025,37.08,191.43,191.42,26.0]
[1753098671250,37.08,191.43,191.42,26.69]
[1753098671929,37.08,191.43,191.42,32.57563728]
[1753098672132,37.06,191.45,191.42,32.57563728]
[1753098672350,37.06,191.45,191.44,5.22356874]
[1753098673854,37.06,191.45,191.44,5.91356874]
[1753098674158,8.64048904,191.49,191.46,26.0]
[1753098674159,37.06,191.47,191.46,26.0]
[1753098674462,37.06,191.47,191.46,31.22302308]
[1753098675653,37.06,191.47,191.46,31.91302308]
[1753098675850,37.06,191.47,191.46,40.55351212]
[1753098676050,8.64048904,191.52,191.46,53.61106983]
[1753098676364,37.06,191.51,191.46,53.61106983]
[1753098676563,37.06,191.51,191.47,0.69]
[1753098676853,45.70048904,191.51,191.46,44.28058079]
[1753098677059,8.64048904,191.5,191.46,44.28058079]
[1753098677248,37.06,191.49,191.46,44.28058079]
[1753098678539,37.06,191.49,191.46,53.61106983]
[1753098679150,37.06,191.49,191.46,44.97058079]
[1753098679569,37.06,191.49,191.47,0.69]
[1753098679979,37.06,191.49,191.46,44.28058079]
[1753098680267,37.06,191.49,191.46,44.97058079]
[1753098680470,37.06,191.49,191.47,0.69]
[1753098680648,37.06,191.49,191.48,5.22247754]
[1753098682878,37.06,191.49,191.47,5.2227503]
[1753098683245,0.06,191.5,191.49,26.0]
[1753098683758,0.06,191.53,191.49,35.33048904]
[1753098683944,37.1,191.53,191.5,35.33048904]
[1753098684147,0.06,191.53,191.51,9.33048904]
[1753098684353,0.06,191.53,191.52,0.69]
[1753098685159,0.06,191.53,191.52,5.9113868]
[1753098685654,0.06,191.54,191.53,26.0]
[1753098686061,0.06,191.54,191.53,26.69]
[1753098687282,0.06,191.54,191.53,31.91111418]
[1753098689392,0.06,191.54,191.53,31.22111418]
[1753098689677,8.70048904,191.54,191.53,33.78651241]
[1753098689982,9.42048904,191.54,191.46,13.05724898]
[1753098690152,8.64048904,191.48,191.46,13.05724898]
[1753098691152,45.66048904,191.49,191.48,26.0]
[1753098691649,37.02,191.49,191.48,31.22247754]
[1753098692055,37.02,191.49,191.48,31.93247754]
[1753098692489,37.02,191.49,191.48,31.22247754]
[1753098692863,45.66048904,191.49,191.48,31.22247754]
[1753098695261,42.90922557,191.49,191.48,179.22247754]
[1753098697665,37.02,191.49,191.48,179.22247754]
[1753098697870,42.90922557,191.49,191.48,179.22247754]
[1753098699665,37.02,191.49,191.48,179.93247754]
[1753098700793,37.02,191.51,191.48,198.87789696]
[1753098701101,37.02,191.52,191.5,5.22193211]
[1753098701286,37.02,191.52,191.5,153.93193211]
[1753098701591,42.90922557,191.52,191.5,153.22193211]
[1753098701780,37.02,191.52,191.5,153.22193211]
[1753098701974,42.90922557,191.52,191.5,153.22193211]
[1753098702785,37.02,191.52,191.5,153.93193211]
[1753098703394,37.02,191.52,191.5,153.22193211]
[1753098703691,42.90922557,191.52,191.5,153.22193211]
[1753098704492,42.90922557,191.52,191.51,26.0]
[1753098704695,42.90922557,191.52,191.51,31.22165944]
[1753098704985,43.55922557,191.52,191.51,31.22165944]
[1753098705687,37.02,191.52,191.51,31.22165944]
[1753098707084,37.02,191.52,191.51,179.22165944]
[1753098707793,0.06,191.53,191.51,153.93165944]
[1753098707998,37.06,191.53,191.52,0.71]
[1753098708171,0.06,191.53,191.52,0.71]
[1753098708375,0.06,191.53,191.51,158.43765944]
[1753098709367,42.94922557,191.53,191.51,158.43765944]
[1753098709580,6.53922557,191.52,191.51,148.0]
[1753098709886,6.53922557,191.52,191.48,5.2524321]
[1753098710080,37.06,191.53,191.48,5.2524321]
[1753098710081,5.88922557,191.49,191.48,5.2524321]
[1753098710276,42.88922557,191.49,191.48,0.03]
[1753098710578,43.53922557,191.49,191.48,5.25247754]
[1753098711669,42.88922557,191.49,191.48,5.25247754]
[1753098712083,5.88922557,191.49,191.48,5.25247754]
[1753098712373,42.88922557,191.49,191.48,5.25247754]
[1753098712778,43.53922557,191.49,191.48,5.25247754]
[1753098712971,42.88922557,191.49,191.48,5.25247754]
[1753098714092,37.0,191.49,191.48,5.25247754]
[1753098714272,37.0,191.49,191.48,5.96247754]
[1753098714872,37.0,191.49,191.48,5.25247754]
[1753098715283,37.0,191.49,191.48,5.96247754]
[1753098715483,0.06,191.53,191.51,26.0]
[1753098715694,42.88922557,191.52,191.51,26.0]
[1753098715901,37.0,191.52,191.51,26.0]
[1753098716394,0.06,191.53,191.51,174.0]
[1753098717696,0.06,191.55,191.52,5.2213868]
[1753098717882,0.06,191.55,191.54,26.0]
[1753098718076,1e-08,191.55,191.54,26.0]
[1753098718285,1e-08,191.55,191.54,174.0]
[1753098718804,26.16844992,191.58,191.54,174.71]
[1753098718981,26.16844992,191.58,191.55,0.71]
[1753098719177,26.16844992,191.58,191.57,3.29e-06]
[1753098719376,4.4537,191.63,191.52,44.3817878]
[1753098719377,26.08266724,191.62,191.56,2.12e-06]
[1753098719598,26.88753818,191.6,191.55,37.0]
[1753098719899,5.94922557,191.64,191.54,15.65]
[1753098719900,26.80244166,191.62,191.54,15.65]
[1753098720084,26.80244166,191.62,191.57,7.5e-07]
[1753098720396,26.80244166,191.62,191.54,15.65]
[1753098720397,33.34166723,191.62,191.56,7.5e-07]
[1753098720581,26.20436927,191.61,191.56,7.5e-07]
[1753098720782,2.71756704,191.61,191.56,7.5e-07]
[1753098720988,26.87037645,191.6,191.56,7.5e-07]
[1753098721186,26.87037645,191.6,191.57,5.88922557]
[1753098721507,26.87037645,191.6,191.57,1e-08]
[1753098721802,26.32208652,191.61,191.57,7.5e-07]
[1753098722100,26.20413716,191.61,191.57,7.5e-07]
[1753098722501,26.22513363,191.61,191.54,32.43468471]
[1753098722802,26.80531866,191.61,191.57,7.5e-07]
[1753098722978,26.57820946,191.61,191.57,7.5e-07]
[1753098723182,26.95133878,191.61,191.57,7.5e-07]
[1753098723481,26.65125391,191.64,191.59,5.88922557]
[1753098723799,26.65125391,191.64,191.55,18.79404854]
[1753098723800,26.62000965,191.65,191.57,5.88923214]
[1753098723983,41.99301785,191.68,191.55,179.29]
[1753098724190,26.10379354,191.68,191.64,7.5e-07]
[1753098724390,26.80784942,191.67,191.56,3.96e-06]
[1753098724705,26.85841418,191.66,191.62,7.5e-07]
[1753098725006,26.64276245,191.66,191.62,5.88922557]
[1753098725186,26.75380432,191.67,191.62,7.5e-07]
[1753098725382,26.99617999,191.68,191.55,5.88923149]
[1753098725585,26.67891538,191.72,191.56,2.13e-06]
[1753098725812,36.67891538,191.72,191.57,0.04]
[1753098725991,43.46359935,191.72,191.61,15.65]
[1753098726302,43.46359935,191.72,191.67,7.5e-07]
[1753098726508,26.92294113,191.7,191.55,5.22058769]
[1753098726703,26.92294113,191.7,191.66,5.88922557]
[1753098726910,26.19954434,191.72,191.54,7.4e-07]
[1753098727114,26.19954434,191.72,191.59,7.5e-07]
[1753098727313,26.91208956,191.7,191.63,20.11077443]
[1753098727691,26.91208956,191.7,191.64,16.78468397]
[1753098727884,26.20486634,191.7,191.64,16.78468397]
[1753098728093,26.20486634,191.7,191.64,15.65]